[Event "*** Titled Tuesday Blitz"]
[Site "Chess.com"]
[Date "2019.08.06"]
[Round "2"]
[White "Mostii"]
[Black "AliKa2810"]
[Result "1-0"]
[WhiteElo "2370"]
[BlackElo "2518"]
[TimeControl "180+2"]
[EndTime "13:23:12 PDT"]
[Termination "Mostii won by resignation"]

1. d4 {[%clk 0:03:01.9]} 1... Nf6 {[%clk 0:03:00.2]} 2. Nf3 {[%clk 0:03:03.8]}
2... g6 {[%clk 0:03:00.2]} 3. g3 {[%clk 0:03:05.7]} 3... Bg7 {[%clk 0:03:00.9]}
4. Bg2 {[%clk 0:03:07.6]} 4... O-O {[%clk 0:03:00.8]} 5. O-O {[%clk 0:03:09.5]}
5... c5 {[%clk 0:02:59.2]} 6. b3 {[%clk 0:03:09.4]} 6... cxd4 {[%clk 0:02:58.4]}
7. Bb2 {[%clk 0:03:10.4]} 7... Nc6 {[%clk 0:02:59]} 8. Nxd4 {[%clk 0:03:11.2]}
8... Nxd4 {[%clk 0:02:54.6]} 9. Bxd4 {[%clk 0:03:13.1]} 9... d5 {[%clk
0:02:54.3]} 10. Nd2 {[%clk 0:03:13.6]} 10... Bf5 {[%clk 0:02:51.3]} 11. c4
{[%clk 0:03:13.1]} 11... dxc4 {[%clk 0:02:24.4]} 12. Nxc4 {[%clk 0:03:15]} 12...
Bc2 {[%clk 0:02:14.7]} 13. Qxc2 {[%clk 0:02:50.2]} 13... Qxd4 {[%clk 0:02:14.4]}
14. Bxb7 {[%clk 0:02:52.1]} 14... Rab8 {[%clk 0:02:09.4]} 15. Rad1 {[%clk
0:02:51.3]} 15... Qc5 {[%clk 0:02:09.6]} 16. Bf3 {[%clk 0:02:51.2]} 16... a5
{[%clk 0:02:08.1]} 17. Rd2 {[%clk 0:02:39.3]} 17... Rfc8 {[%clk 0:02:07.9]} 18.
Rfd1 {[%clk 0:02:39.7]} 18... a4 {[%clk 0:02:08.9]} 19. h4 {[%clk 0:02:38.4]}
19... h5 {[%clk 0:02:08.7]} 20. Kg2 {[%clk 0:02:29.2]} 20... Rb4 {[%clk
0:02:07.1]} 21. Rd8+ {[%clk 0:02:25.1]} 21... Rxd8 {[%clk 0:02:04.4]} 22. Rxd8+
{[%clk 0:02:27]} 22... Kh7 {[%clk 0:02:05.6]} 23. Ne3 {[%clk 0:01:49.8]} 23...
Qb6 {[%clk 0:01:57.4]} 24. Rd3 {[%clk 0:01:37.6]} 24... axb3 {[%clk 0:01:48.9]}
25. Rxb3 {[%clk 0:01:37.1]} 25... Rxb3 {[%clk 0:01:42.7]} 26. Qxb3 {[%clk
0:01:35.9]} 26... Qxb3 {[%clk 0:01:40.9]} 27. axb3 {[%clk 0:01:37.8]} 27... Nd7
{[%clk 0:01:36.9]} 28. b4 {[%clk 0:01:31.7]} 28... Nb6 {[%clk 0:01:34.7]} 29.
Nd5 {[%clk 0:01:12.4]} 29... Nxd5 {[%clk 0:01:34.3]} 30. Bxd5 {[%clk 0:01:14.3]}
30... e6 {[%clk 0:01:31.8]} 31. Bc6 {[%clk 0:01:13.8]} 31... Bc3 {[%clk
0:01:33]} 32. b5 {[%clk 0:01:14.3]} 32... Bd4 {[%clk 0:01:34.6]} 33. Kf3 {[%clk
0:01:11.9]} 33... Kg7 {[%clk 0:01:34.9]} 34. e3 {[%clk 0:01:13.3]} 34... Bb6
{[%clk 0:01:35.3]} 35. Ke4 {[%clk 0:01:14.7]} 35... Kf6 {[%clk 0:01:35]} 36. f3
{[%clk 0:01:14.9]} 36... g5 {[%clk 0:01:32.6]} 37. hxg5+ {[%clk 0:01:07.6]}
37... Kxg5 {[%clk 0:01:32.3]} 38. Be8 {[%clk 0:01:09.5]} 38... Kf6 {[%clk
0:01:27.3]} 39. Kd3 {[%clk 0:01:05.7]} 39... Bc7 {[%clk 0:01:27.8]} 40. f4
{[%clk 0:01:06.5]} 40... Ke7 {[%clk 0:01:16.3]} 41. Bc6 {[%clk 0:01:07.2]} 41...
Kd6 {[%clk 0:01:08]} 42. Bf3 {[%clk 0:01:00.1]} 42... e5 {[%clk 0:01:04.1]} 43.
Bxh5 {[%clk 0:00:46.7]} 43... exf4 {[%clk 0:00:59.8]} 44. exf4 {[%clk
0:00:48.6]} 44... f6 {[%clk 0:00:59.8]} 45. Ke4 {[%clk 0:00:46.2]} 45... Bb6
{[%clk 0:00:51.8]} 46. Kf5 {[%clk 0:00:46.1]} 46... Bf2 {[%clk 0:00:52.8]} 47.
g4 {[%clk 0:00:46.8]} 47... Be3 {[%clk 0:00:53.2]} 48. Bf7 {[%clk 0:00:47]}
48... Kc5 {[%clk 0:00:51.6]} 49. Be8 {[%clk 0:00:47.1]} 49... Kd6 {[%clk
0:00:46.6]} 50. Kxf6 {[%clk 0:00:44.3]} 50... Bxf4 {[%clk 0:00:46.9]} 51. g5
{[%clk 0:00:45.5]} 51... Be5+ {[%clk 0:00:30]} 52. Kf7 {[%clk 0:00:45.5]} 52...
Kc7 {[%clk 0:00:20.1]} 53. g6 {[%clk 0:00:45.7]} 53... Kd8 {[%clk 0:00:21.3]}
54. Bc6 {[%clk 0:00:46.2]} 54... Kc7 {[%clk 0:00:22.5]} 55. g7 {[%clk
0:00:46.5]} 1-0

[Event "*** Titled Tuesday Blitz"]
[Site "Chess.com"]
[Date "2019.08.06"]
[Round "2"]
[White "MFBerna"]
[Black "doons21"]
[Result "1-0"]
[WhiteElo "2383"]
[BlackElo "2611"]
[TimeControl "180+2"]
[EndTime "13:23:13 PDT"]
[Termination "MFBerna won by resignation"]

1. e4 {[%clk 0:03:01.9]} 1... e6 {[%clk 0:02:58.8]} 2. d4 {[%clk 0:03:02.5]}
2... d5 {[%clk 0:02:59.8]} 3. Nd2 {[%clk 0:03:04.4]} 3... Nc6 {[%clk 0:03:00.6]}
4. Ngf3 {[%clk 0:03:04.9]} 4... Nf6 {[%clk 0:03:01.7]} 5. exd5 {[%clk
0:02:59.5]} 5... exd5 {[%clk 0:02:59.5]} 6. c3 {[%clk 0:02:57.9]} 6... Bf5
{[%clk 0:02:59.1]} 7. Be2 {[%clk 0:02:58.3]} 7... Bd6 {[%clk 0:03:00]} 8. O-O
{[%clk 0:02:59.4]} 8... O-O {[%clk 0:03:01]} 9. Re1 {[%clk 0:02:58]} 9... Ne4
{[%clk 0:02:57.9]} 10. Nxe4 {[%clk 0:02:50.5]} 10... dxe4 {[%clk 0:02:57.6]} 11.
Nd2 {[%clk 0:02:51.5]} 11... Bg6 {[%clk 0:02:19.3]} 12. Nc4 {[%clk 0:02:45.3]}
12... Be7 {[%clk 0:02:20.3]} 13. Bf4 {[%clk 0:02:42.7]} 13... Kh8 {[%clk
0:02:18]} 14. f3 {[%clk 0:02:35.3]} 14... Bg5 {[%clk 0:02:15.5]} 15. Qd2 {[%clk
0:02:25.5]} 15... h6 {[%clk 0:02:06]} 16. fxe4 {[%clk 0:02:21.3]} 16... Bxe4
{[%clk 0:02:06.4]} 17. Bxg5 {[%clk 0:02:18]} 17... Qxg5 {[%clk 0:01:58.1]} 18.
Qxg5 {[%clk 0:02:18.4]} 18... hxg5 {[%clk 0:02:00]} 19. Nd2 {[%clk 0:01:53.2]}
19... Bg6 {[%clk 0:01:42]} 20. Bf3 {[%clk 0:01:48.8]} 20... Rfe8 {[%clk
0:01:43]} 21. Bxc6 {[%clk 0:01:41.6]} 21... bxc6 {[%clk 0:01:43.3]} 22. Kf2
{[%clk 0:01:38.1]} 22... f6 {[%clk 0:01:44.1]} 23. b4 {[%clk 0:01:30.5]} 23...
Kg8 {[%clk 0:01:36.7]} 24. Nb3 {[%clk 0:01:27.9]} 24... Kf7 {[%clk 0:01:19]} 25.
Nc5 {[%clk 0:01:17.6]} 25... a5 {[%clk 0:01:19.5]} 26. Rxe8 {[%clk 0:01:16.2]}
26... Kxe8 {[%clk 0:01:17.1]} 27. Re1+ {[%clk 0:01:09.5]} 27... Kf7 {[%clk
0:01:17.6]} 28. a4 {[%clk 0:00:43.8]} 28... Bf5 {[%clk 0:01:16.5]} 29. Re2
{[%clk 0:00:40.6]} 29... g4 {[%clk 0:01:11.1]} 30. Rb2 {[%clk 0:00:37.1]} 30...
g5 {[%clk 0:01:09.7]} 31. bxa5 {[%clk 0:00:37]} 31... Rxa5 {[%clk 0:01:09.9]}
32. Rb7 {[%clk 0:00:36.4]} 32... Ke7 {[%clk 0:01:06.2]} 33. Rxc7+ {[%clk
0:00:33.9]} 33... Kd6 {[%clk 0:01:07.4]} 34. Rf7 {[%clk 0:00:32.1]} 34... Bc2
{[%clk 0:01:08.8]} 35. Nb7+ {[%clk 0:00:23.1]} 35... Ke6 {[%clk 0:01:09.7]} 36.
Nxa5 {[%clk 0:00:19.6]} 36... Kxf7 {[%clk 0:01:09.3]} 37. Nxc6 {[%clk
0:00:18.5]} 37... Bxa4 {[%clk 0:01:10.8]} 38. Nb4 {[%clk 0:00:19.1]} 38... Ke6
{[%clk 0:01:11.9]} 39. Ke3 {[%clk 0:00:19.8]} 39... f5 {[%clk 0:01:11.1]} 40. c4
{[%clk 0:00:20.3]} 40... Bb3 {[%clk 0:01:09.9]} 41. d5+ {[%clk 0:00:20.9]} 41...
Ke5 {[%clk 0:01:10.7]} 42. Nd3+ {[%clk 0:00:22]} 42... Kd6 {[%clk 0:01:10]} 43.
Kd4 {[%clk 0:00:23.3]} 43... f4 {[%clk 0:01:11.6]} 44. c5+ {[%clk 0:00:24.3]}
44... Ke7 {[%clk 0:01:12.9]} 45. d6+ {[%clk 0:00:25.3]} 45... Ke6 {[%clk
0:01:11.7]} 46. Ne5 {[%clk 0:00:21.5]} 46... Bd1 {[%clk 0:01:06.1]} 47. d7
{[%clk 0:00:22.4]} 47... Ke7 {[%clk 0:01:06.6]} 48. c6 {[%clk 0:00:22.7]} 48...
f3 {[%clk 0:01:07.8]} 49. gxf3 {[%clk 0:00:22.8]} 49... gxf3 {[%clk 0:01:08.9]}
50. Ke3 {[%clk 0:00:23.2]} 50... Ba4 {[%clk 0:01:06.8]} 51. Nf7 {[%clk
0:00:20.3]} 1-0

[Event "*** Titled Tuesday Blitz"]
[Site "Chess.com"]
[Date "2019.08.06"]
[Round "2"]
[White "Kimster98"]
[Black "Cruel_Yaro"]
[Result "1/2-1/2"]
[WhiteElo "2600"]
[BlackElo "2755"]
[TimeControl "180+2"]
[EndTime "13:23:15 PDT"]
[Termination "Game drawn by repetition"]

1. e4 {[%clk 0:03:01.1]} 1... c5 {[%clk 0:03:00.2]} 2. Nf3 {[%clk 0:03:02.1]}
2... d6 {[%clk 0:03:01.7]} 3. Bb5+ {[%clk 0:03:02.9]} 3... Nc6 {[%clk 0:03:02]}
4. d4 {[%clk 0:02:58]} 4... cxd4 {[%clk 0:02:56]} 5. Qxd4 {[%clk 0:02:59.9]}
5... Bd7 {[%clk 0:02:47.9]} 6. Bxc6 {[%clk 0:03:00.1]} 6... Bxc6 {[%clk
0:02:49.3]} 7. c4 {[%clk 0:03:01.7]} 7... Nf6 {[%clk 0:02:30]} 8. Nc3 {[%clk
0:03:01.8]} 8... e6 {[%clk 0:02:13.6]} 9. O-O {[%clk 0:02:52.9]} 9... Be7 {[%clk
0:02:13.7]} 10. b3 {[%clk 0:02:54]} 10... O-O {[%clk 0:02:09.2]} 11. Rd1 {[%clk
0:02:41.5]} 11... Qa5 {[%clk 0:02:06]} 12. Qd3 {[%clk 0:02:31.6]} 12... Rfd8
{[%clk 0:02:02.2]} 13. Bb2 {[%clk 0:02:25.4]} 13... Qh5 {[%clk 0:01:53.5]} 14.
Nd4 {[%clk 0:02:17.2]} 14... Be8 {[%clk 0:01:49.5]} 15. Qe2 {[%clk 0:02:11.7]}
15... a6 {[%clk 0:01:39.5]} 16. Qxh5 {[%clk 0:02:08]} 16... Nxh5 {[%clk
0:01:40]} 17. a4 {[%clk 0:02:08.6]} 17... Nf6 {[%clk 0:01:28.9]} 18. Ba3 {[%clk
0:02:01.1]} 18... Kf8 {[%clk 0:01:21.9]} 19. a5 {[%clk 0:01:55.9]} 19... Rac8
{[%clk 0:01:09.7]} 20. Rac1 {[%clk 0:01:56.2]} 20... Rb8 {[%clk 0:00:39.3]} 21.
b4 {[%clk 0:01:08]} 21... Rbc8 {[%clk 0:00:36.4]} 22. b5 {[%clk 0:00:35.5]}
22... Rxc4 {[%clk 0:00:34]} 23. bxa6 {[%clk 0:00:36.8]} 23... bxa6 {[%clk
0:00:33.6]} 24. f3 {[%clk 0:00:38.7]} 24... Rdc8 {[%clk 0:00:31.3]} 25. Nce2
{[%clk 0:00:39.5]} 25... d5 {[%clk 0:00:29.4]} 26. Bxe7+ {[%clk 0:00:38.3]}
26... Kxe7 {[%clk 0:00:31.3]} 27. e5 {[%clk 0:00:38]} 27... Nd7 {[%clk
0:00:32.4]} 28. f4 {[%clk 0:00:38.5]} 28... Rxc1 {[%clk 0:00:31.4]} 29. Rxc1
{[%clk 0:00:38.5]} 29... Rxc1+ {[%clk 0:00:31.8]} 30. Nxc1 {[%clk 0:00:40.4]}
30... Nc5 {[%clk 0:00:32.5]} 31. Ncb3 {[%clk 0:00:34.2]} 31... Nxb3 {[%clk
0:00:30.3]} 32. Nxb3 {[%clk 0:00:36.1]} 32... Bb5 {[%clk 0:00:30.5]} 33. Kf2
{[%clk 0:00:35.2]} 33... Kd7 {[%clk 0:00:31.5]} 34. Nd4 {[%clk 0:00:35.2]} 34...
Bd3 {[%clk 0:00:28.6]} 35. Ke3 {[%clk 0:00:34.8]} 35... Bb1 {[%clk 0:00:28.1]}
36. Kd2 {[%clk 0:00:32.4]} 36... Ba2 {[%clk 0:00:27.6]} 37. Kc3 {[%clk
0:00:33.2]} 37... Bc4 {[%clk 0:00:27.1]} 38. Kb4 {[%clk 0:00:34.3]} 38... f6
{[%clk 0:00:28.4]} 39. Kc5 {[%clk 0:00:33.6]} 39... Bf1 {[%clk 0:00:19.9]} 40.
g3 {[%clk 0:00:34.1]} 40... fxe5 {[%clk 0:00:19.4]} 41. fxe5 {[%clk 0:00:34.6]}
41... g5 {[%clk 0:00:20.1]} 42. Kb6 {[%clk 0:00:31.1]} 42... g4 {[%clk
0:00:20.5]} 43. Nb3 {[%clk 0:00:27]} 43... h5 {[%clk 0:00:19.8]} 44. Nc5+ {[%clk
0:00:22.3]} 44... Ke7 {[%clk 0:00:20.8]} 45. Nb3 {[%clk 0:00:18.6]} 45... Bc4
{[%clk 0:00:15.6]} 46. Nd4 {[%clk 0:00:18.8]} 46... Kd7 {[%clk 0:00:16.8]} 47.
Kb7 {[%clk 0:00:18.8]} 47... Bd3 {[%clk 0:00:17.3]} 48. Kb6 {[%clk 0:00:19.7]}
48... Bc4 {[%clk 0:00:18.4]} 49. Kb7 {[%clk 0:00:21.1]} 49... Bd3 {[%clk
0:00:19.5]} 50. Kb6 {[%clk 0:00:22.5]} 50... Bc4 {[%clk 0:00:20.2]} 1/2-1/2

[Event "*** Titled Tuesday Blitz"]
[Site "Chess.com"]
[Date "2019.08.06"]
[Round "2"]
[White "Wolverine_master"]
[Black "warmoatmeal"]
[Result "1-0"]
[WhiteElo "2116"]
[BlackElo "2044"]
[TimeControl "180+2"]
[EndTime "13:23:15 PDT"]
[Termination "Wolverine_master won by resignation"]

1. e4 {[%clk 0:03:01.9]} 1... c5 {[%clk 0:02:59.8]} 2. Nf3 {[%clk 0:03:03.1]}
2... Nc6 {[%clk 0:03:00.7]} 3. d4 {[%clk 0:03:04.4]} 3... cxd4 {[%clk
0:03:01.6]} 4. Nxd4 {[%clk 0:03:06.3]} 4... e5 {[%clk 0:03:03]} 5. Nb5 {[%clk
0:03:07.5]} 5... a6 {[%clk 0:03:03.9]} 6. N5a3 {[%clk 0:03:08]} 6... Nf6 {[%clk
0:03:04.1]} 7. Bg5 {[%clk 0:03:07.7]} 7... Be7 {[%clk 0:03:01]} 8. Nc3 {[%clk
0:03:08.7]} 8... d6 {[%clk 0:02:56.7]} 9. Bd3 {[%clk 0:03:02.6]} 9... Be6 {[%clk
0:02:56.3]} 10. O-O {[%clk 0:03:00.8]} 10... b5 {[%clk 0:02:56.4]} 11. Bxf6
{[%clk 0:03:02]} 11... Bxf6 {[%clk 0:02:47.3]} 12. Nd5 {[%clk 0:03:02.9]} 12...
O-O {[%clk 0:02:48.2]} 13. c3 {[%clk 0:03:00.5]} 13... Bxd5 {[%clk 0:02:47.6]}
14. exd5 {[%clk 0:03:01.1]} 14... Ne7 {[%clk 0:02:48.8]} 15. Nc2 {[%clk
0:02:48.4]} 15... Nxd5 {[%clk 0:02:46.8]} 16. Bxh7+ {[%clk 0:02:49]} 16... Kxh7
{[%clk 0:02:47.3]} 17. Qxd5 {[%clk 0:02:50.6]} 17... Qb6 {[%clk 0:02:41.1]} 18.
Ne3 {[%clk 0:02:51]} 18... g6 {[%clk 0:02:33.6]} 19. Rad1 {[%clk 0:02:49.5]}
19... Rfd8 {[%clk 0:02:33.3]} 20. Rd3 {[%clk 0:02:48.3]} 20... Kg7 {[%clk
0:02:27]} 21. Ng4 {[%clk 0:02:48.4]} 21... Be7 {[%clk 0:02:24.3]} 22. Rh3 {[%clk
0:02:16]} 22... Rh8 {[%clk 0:02:23.6]} 23. Rxh8 {[%clk 0:02:07.3]} 23... Rxh8
{[%clk 0:02:23.6]} 24. Re1 {[%clk 0:02:05.8]} 24... f5 {[%clk 0:02:14.6]} 25.
Qe6 {[%clk 0:01:54.9]} 25... Qc7 {[%clk 0:01:57.7]} 26. Ne3 {[%clk 0:01:51.2]}
26... Bg5 {[%clk 0:01:53.2]} 27. Nd5 {[%clk 0:01:51]} 27... Qf7 {[%clk
0:01:50.3]} 28. Qxd6 {[%clk 0:01:50.2]} 28... e4 {[%clk 0:01:26.1]} 29. Qe5+
{[%clk 0:01:42.2]} 29... Kh7 {[%clk 0:01:26.2]} 30. Nf4 {[%clk 0:00:58.3]} 30...
Re8 {[%clk 0:01:20.4]} 31. Qd6 {[%clk 0:00:37.4]} 31... Rd8 {[%clk 0:01:17.5]}
32. Qe5 {[%clk 0:00:38]} 32... Qxa2 {[%clk 0:00:54.7]} 33. Ne6 {[%clk
0:00:36.2]} 33... Rd7 {[%clk 0:00:27.4]} 34. Nf8+ {[%clk 0:00:32.6]} 34... Kg8
{[%clk 0:00:26.3]} 35. Nxd7 {[%clk 0:00:33.3]} 35... Qxb2 {[%clk 0:00:27.2]} 36.
Nf6+ {[%clk 0:00:28.7]} 36... Kf7 {[%clk 0:00:25.8]} 37. Nd5 {[%clk 0:00:25.9]}
37... Qd2 {[%clk 0:00:24.1]} 38. Rf1 {[%clk 0:00:22.4]} 38... a5 {[%clk
0:00:20.8]} 39. Qd4 {[%clk 0:00:20.3]} 39... Qa2 {[%clk 0:00:15.1]} 40. Qa7+
{[%clk 0:00:20.2]} 40... Ke6 {[%clk 0:00:15.5]} 41. Nc7+ {[%clk 0:00:21]} 41...
Kf6 {[%clk 0:00:15.2]} 42. Nxb5 {[%clk 0:00:22.3]} 42... a4 {[%clk 0:00:15.9]}
43. Qd4+ {[%clk 0:00:23.1]} 43... Kf7 {[%clk 0:00:15.2]} 44. Nd6+ {[%clk
0:00:24.6]} 44... Kg8 {[%clk 0:00:15.7]} 45. Qc4+ {[%clk 0:00:22.7]} 45... Qxc4
{[%clk 0:00:15.6]} 46. Nxc4 {[%clk 0:00:24.6]} 46... a3 {[%clk 0:00:13.1]} 47.
Nxa3 {[%clk 0:00:24.3]} 1-0

[Event "*** Titled Tuesday Blitz"]
[Site "Chess.com"]
[Date "2019.08.06"]
[Round "2"]
[White "Dhaydon19"]
[Black "tbalabayev"]
[Result "1-0"]
[WhiteElo "2607"]
[BlackElo "2361"]
[TimeControl "180+2"]
[EndTime "13:23:19 PDT"]
[Termination "Dhaydon19 won by resignation"]

1. d4 {[%clk 0:02:42.8]} 1... Nf6 {[%clk 0:02:59.4]} 2. Nf3 {[%clk 0:02:44.1]}
2... d6 {[%clk 0:03:00.6]} 3. c4 {[%clk 0:02:45.6]} 3... Nc6 {[%clk 0:03:01.8]}
4. Nc3 {[%clk 0:02:46.7]} 4... e5 {[%clk 0:03:03.4]} 5. dxe5 {[%clk 0:02:47.8]}
5... Nxe5 {[%clk 0:03:04.2]} 6. Nxe5 {[%clk 0:02:48.7]} 6... dxe5 {[%clk
0:03:06.1]} 7. Qc2 {[%clk 0:02:50.1]} 7... Be7 {[%clk 0:02:56.6]} 8. Bg5 {[%clk
0:02:50.3]} 8... c6 {[%clk 0:02:54.5]} 9. e3 {[%clk 0:02:49.7]} 9... O-O {[%clk
0:02:54.4]} 10. Bd3 {[%clk 0:02:50.4]} 10... h6 {[%clk 0:02:55.7]} 11. Bh4
{[%clk 0:02:51.2]} 11... Nd7 {[%clk 0:02:52.9]} 12. Bg3 {[%clk 0:02:51.3]} 12...
Nc5 {[%clk 0:02:52.6]} 13. Be2 {[%clk 0:02:49]} 13... Qc7 {[%clk 0:02:38.8]} 14.
O-O-O {[%clk 0:02:43.8]} 14... Be6 {[%clk 0:02:21.4]} 15. Kb1 {[%clk 0:02:38.8]}
15... f5 {[%clk 0:02:14]} 16. f3 {[%clk 0:02:37.1]} 16... a6 {[%clk 0:02:06.2]}
17. Bf2 {[%clk 0:02:33.9]} 17... b5 {[%clk 0:01:57.7]} 18. e4 {[%clk 0:02:07.4]}
18... bxc4 {[%clk 0:01:46.2]} 19. Bxc5 {[%clk 0:02:00.4]} 19... Bxc5 {[%clk
0:01:45.8]} 20. exf5 {[%clk 0:02:01.6]} 20... Bxf5 {[%clk 0:01:38.9]} 21. Bxc4+
{[%clk 0:02:01.5]} 21... Kh8 {[%clk 0:01:40.2]} 22. Bd3 {[%clk 0:02:02.5]} 22...
Be6 {[%clk 0:01:35.9]} 23. Be4 {[%clk 0:01:57.4]} 23... Bd4 {[%clk 0:01:25.2]}
24. Ne2 {[%clk 0:01:58.1]} 24... Qa5 {[%clk 0:01:04]} 25. b3 {[%clk 0:01:53.8]}
25... Bc5 {[%clk 0:00:58.6]} 26. Rd3 {[%clk 0:01:47.5]} 26... Rab8 {[%clk
0:00:38.4]} 27. Rc3 {[%clk 0:01:39.1]} 27... Bb4 {[%clk 0:00:20.1]} 28. Rxc6
{[%clk 0:01:37.9]} 28... Bg8 {[%clk 0:00:17]} 29. Rd1 {[%clk 0:01:33.9]} 29...
Rfd8 {[%clk 0:00:17.5]} 30. Rxd8 {[%clk 0:01:21.7]} 30... Rxd8 {[%clk
0:00:19.4]} 31. Nc1 {[%clk 0:01:13.6]} 31... Rd2 {[%clk 0:00:14.6]} 32. Rc8
{[%clk 0:01:11.5]} 32... Rxc2 {[%clk 0:00:15]} 33. Kxc2 {[%clk 0:01:12.1]} 33...
Ba3 {[%clk 0:00:07.3]} 34. Nd3 {[%clk 0:01:11.1]} 34... g6 {[%clk 0:00:04.2]}
35. Bxg6 {[%clk 0:01:08.6]} 35... Kg7 {[%clk 0:00:05.2]} 36. Be4 {[%clk
0:01:09.9]} 36... Bh7 {[%clk 0:00:06.2]} 37. Rc4 {[%clk 0:01:05.3]} 37... Bxe4
{[%clk 0:00:06.4]} 38. Rxe4 {[%clk 0:01:06.3]} 38... Bd6 {[%clk 0:00:07.9]} 39.
a4 {[%clk 0:01:06.2]} 39... Qd5 {[%clk 0:00:08.8]} 40. Rc4 {[%clk 0:01:05.1]}
40... Qe6 {[%clk 0:00:07.2]} 41. Kd2 {[%clk 0:00:58.9]} 41... a5 {[%clk
0:00:08.3]} 42. Ke2 {[%clk 0:00:59.8]} 42... Qd5 {[%clk 0:00:09.4]} 43. Nf2
{[%clk 0:00:59.6]} 43... Qb7 {[%clk 0:00:10.2]} 44. Ne4 {[%clk 0:00:59.3]} 44...
Be7 {[%clk 0:00:10.2]} 45. Rc3 {[%clk 0:00:59.4]} 45... Qa6+ {[%clk 0:00:11.2]}
46. Rd3 {[%clk 0:01:00.3]} 46... Kf7 {[%clk 0:00:10.7]} 47. Nc3 {[%clk
0:00:59.1]} 47... Bb4 {[%clk 0:00:10.4]} 48. Nd5 {[%clk 0:00:58.2]} 48... Ke6
{[%clk 0:00:11.1]} 49. Nc7+ {[%clk 0:00:59.3]} 49... Kf5 {[%clk 0:00:10.9]} 50.
Nxa6 {[%clk 0:01:01.2]} 50... e4 {[%clk 0:00:12.8]} 51. Nxb4 {[%clk 0:01:01.1]}
51... exd3+ {[%clk 0:00:12.2]} 52. Nxd3 {[%clk 0:01:02.1]} 52... Ke6 {[%clk
0:00:14.1]} 53. b4 {[%clk 0:01:03.3]} 53... axb4 {[%clk 0:00:14.3]} 54. Nxb4
{[%clk 0:01:05.2]} 1-0

[Event "*** Titled Tuesday Blitz"]
[Site "Chess.com"]
[Date "2019.08.06"]
[Round "2"]
[White "731291"]
[Black "AminMolaei"]
[Result "0-1"]
[WhiteElo "2688"]
[BlackElo "2548"]
[TimeControl "180+2"]
[EndTime "13:23:21 PDT"]
[Termination "AminMolaei won by resignation"]

1. d4 {[%clk 0:03:01.9]} 1... Nf6 {[%clk 0:02:55.8]} 2. Nf3 {[%clk 0:03:02.8]}
2... g6 {[%clk 0:02:57.1]} 3. Nbd2 {[%clk 0:03:01.9]} 3... Bg7 {[%clk
0:02:58.4]} 4. e4 {[%clk 0:03:03.2]} 4... d6 {[%clk 0:02:59.8]} 5. Bd3 {[%clk
0:03:04.1]} 5... O-O {[%clk 0:03:01]} 6. O-O {[%clk 0:03:05]} 6... c5 {[%clk
0:03:02.6]} 7. c3 {[%clk 0:03:04.8]} 7... Nc6 {[%clk 0:03:04.1]} 8. h3 {[%clk
0:03:04.7]} 8... Ne8 {[%clk 0:03:04.1]} 9. dxc5 {[%clk 0:02:56.8]} 9... dxc5
{[%clk 0:03:04.7]} 10. Bc4 {[%clk 0:02:57]} 10... Nd6 {[%clk 0:03:05.1]} 11. Bb3
{[%clk 0:02:56.6]} 11... b5 {[%clk 0:03:01.9]} 12. Bd5 {[%clk 0:02:39.7]} 12...
Bb7 {[%clk 0:03:01.5]} 13. e5 {[%clk 0:02:40.8]} 13... Nxe5 {[%clk 0:02:59.5]}
14. Bxb7 {[%clk 0:02:35.8]} 14... Nxb7 {[%clk 0:03:01.4]} 15. Nxe5 {[%clk
0:02:36.4]} 15... Bxe5 {[%clk 0:03:01.7]} 16. Qe2 {[%clk 0:02:37.5]} 16... Qc7
{[%clk 0:02:45.9]} 17. Qxb5 {[%clk 0:02:37.9]} 17... Nd6 {[%clk 0:02:46.1]} 18.
Qe2 {[%clk 0:02:39.1]} 18... Nf5 {[%clk 0:02:47.2]} 19. Nc4 {[%clk 0:02:38.4]}
19... Bf6 {[%clk 0:02:47.6]} 20. Be3 {[%clk 0:02:19.2]} 20... Rfd8 {[%clk
0:02:47.4]} 21. Rfd1 {[%clk 0:02:20.2]} 21... Rab8 {[%clk 0:02:47]} 22. Rxd8+
{[%clk 0:02:19.2]} 22... Rxd8 {[%clk 0:02:46.7]} 23. Rd1 {[%clk 0:02:19.2]}
23... Rxd1+ {[%clk 0:02:40.1]} 24. Qxd1 {[%clk 0:02:21.1]} 24... e6 {[%clk
0:02:29]} 25. Qd3 {[%clk 0:02:15.7]} 25... Kg7 {[%clk 0:02:28.2]} 26. Bd2 {[%clk
0:02:00.2]} 26... h5 {[%clk 0:02:28.3]} 27. Qf3 {[%clk 0:01:58.8]} 27... h4
{[%clk 0:02:28.1]} 28. Bf4 {[%clk 0:01:59.8]} 28... Qd7 {[%clk 0:02:26.6]} 29.
Qe2 {[%clk 0:02:00]} 29... Qd5 {[%clk 0:02:26.6]} 30. Bb8 {[%clk 0:01:56.7]}
30... a6 {[%clk 0:02:23]} 31. Be5 {[%clk 0:01:57.8]} 31... Bxe5 {[%clk
0:02:19.5]} 32. Qxe5+ {[%clk 0:01:56.4]} 32... Qxe5 {[%clk 0:02:18.4]} 33. Nxe5
{[%clk 0:01:58.3]} 33... Nd6 {[%clk 0:02:19.4]} 34. Nf3 {[%clk 0:01:53.7]} 34...
Nf5 {[%clk 0:02:16.7]} 35. Kf1 {[%clk 0:01:54.4]} 35... f6 {[%clk 0:02:16.6]}
36. Ke2 {[%clk 0:01:55.9]} 36... g5 {[%clk 0:02:16.4]} 37. Kd3 {[%clk
0:01:56.3]} 37... Nd6 {[%clk 0:02:17.8]} 38. a4 {[%clk 0:01:50.6]} 38... Kf7
{[%clk 0:02:10.5]} 39. Nd2 {[%clk 0:01:49.2]} 39... e5 {[%clk 0:02:06.5]} 40. b4
{[%clk 0:01:46.9]} 40... cxb4 {[%clk 0:02:05.4]} 41. cxb4 {[%clk 0:01:48.8]}
41... Ke6 {[%clk 0:02:06.7]} 42. Ne4 {[%clk 0:01:47.9]} 42... Nxe4 {[%clk
0:01:56.3]} 43. Kxe4 {[%clk 0:01:49.8]} 43... f5+ {[%clk 0:01:57.7]} 44. Kd3
{[%clk 0:01:45.8]} 44... Kd5 {[%clk 0:01:59.6]} 45. Kc3 {[%clk 0:01:38.4]} 45...
g4 {[%clk 0:01:58.4]} 46. Kd3 {[%clk 0:01:36.9]} 46... e4+ {[%clk 0:01:51.2]}
47. Ke3 {[%clk 0:01:30.3]} 47... Ke5 {[%clk 0:01:51.7]} 48. hxg4 {[%clk
0:00:58.1]} 48... fxg4 {[%clk 0:01:50.5]} 49. Ke2 {[%clk 0:00:41.8]} 49... Kd5
{[%clk 0:01:45.9]} 50. f4 {[%clk 0:00:36]} 50... exf3+ {[%clk 0:01:13.9]} 51.
gxf3 {[%clk 0:00:35.5]} 51... g3 {[%clk 0:01:13.8]} 52. Kf1 {[%clk 0:00:25.5]}
52... h3 {[%clk 0:01:14.1]} 53. a5 {[%clk 0:00:21.5]} 53... Kc4 {[%clk
0:01:03.4]} 54. f4 {[%clk 0:00:22.5]} 54... Kxb4 {[%clk 0:01:04.5]} 55. f5
{[%clk 0:00:22.5]} 55... Kc5 {[%clk 0:01:05.7]} 56. f6 {[%clk 0:00:24.4]} 56...
Kd6 {[%clk 0:01:06.7]} 57. f7 {[%clk 0:00:26.3]} 57... Ke7 {[%clk 0:01:07.8]}
58. f8=Q+ {[%clk 0:00:28.2]} 58... Kxf8 {[%clk 0:01:08.6]} 0-1